[Event "Titled Tuesday Blitz March 01 Early 2022"]
[White "Jaferian, Koosha"]
[Black "Zheenbekov, Nurgazy"]
[WhiteFideId "12507440"]
[BlackFideId "13800485"]
[WhiteElo "2027"]
[BlackElo "1959"]
[Result "1-0"]
[Round "10"]
[TimeControl "180+1"]
[Date "2022.03.01"]
[WhiteClock "0:00:18"]
[BlackClock "0:00:01"]

1. Nf3 {[%clk 0:03:00]}  Nf6 {[%clk 0:02:59]} 2. b3 {[%clk 0:03:01]}  d5 {[%clk 0:02:59]} 3. Bb2 {[%clk 0:03:02]}  c5 {[%clk 0:02:58]} 4. e3 {[%clk 0:03:02]}  Nc6 {[%clk 0:02:59]} 5. Be2 {[%clk 0:03:03]}  e6 {[%clk 0:02:52]} 6. O-O {[%clk 0:03:03]}  Be7 {[%clk 0:02:52]} 7. d4 {[%clk 0:03:03]}  O-O {[%clk 0:02:52]} 8. c4 {[%clk 0:03:00]}  b6 {[%clk 0:02:51]} 9. cxd5 {[%clk 0:03:01]}  exd5 {[%clk 0:02:51]} 10. Nbd2 {[%clk 0:03:00]}  Bb7 {[%clk 0:02:51]} 11. Bd3 {[%clk 0:03:01]}  Re8 {[%clk 0:02:48]} 12. a3 {[%clk 0:02:56]}  Rc8 {[%clk 0:02:47]} 13. Rc1 {[%clk 0:02:55]}  Bf8 {[%clk 0:02:37]} 14. Re1 {[%clk 0:02:45]}  g6 {[%clk 0:02:37]} 15. Nf1 {[%clk 0:02:45]}  Ne4 {[%clk 0:02:31]} 16. dxc5 {[%clk 0:02:41]}  bxc5 {[%clk 0:02:26]} 17. Ng3 {[%clk 0:02:31]}  Qe7 {[%clk 0:02:17]} 18. Bxe4 {[%clk 0:02:16]}  dxe4 {[%clk 0:02:16]} 19. Nd2 {[%clk 0:02:16]}  f5 {[%clk 0:02:05]} 20. Nc4 {[%clk 0:02:16]}  Red8 {[%clk 0:02:04]} 21. Qc2 {[%clk 0:02:13]}  Bg7 {[%clk 0:02:02]} 22. Ne2 {[%clk 0:02:05]}  Rd3 {[%clk 0:01:55]} 23. Nf4 {[%clk 0:02:02]}  Rdd8 {[%clk 0:01:47]} 24. Red1 {[%clk 0:01:58]}  Ne5 {[%clk 0:01:46]} 25. Nxe5 {[%clk 0:01:54]}  Bxe5 {[%clk 0:01:45]} 26. Bxe5 {[%clk 0:01:55]}  Qxe5 {[%clk 0:01:45]} 27. Qc4+ {[%clk 0:01:54]}  Kh8 {[%clk 0:01:44]} 28. h4 {[%clk 0:01:51]}  Rd6 {[%clk 0:01:33]} 29. Rxd6 {[%clk 0:01:22]}  Qxd6 {[%clk 0:01:33]} 30. h5 {[%clk 0:01:23]}  g5 {[%clk 0:01:29]} 31. Ne6 {[%clk 0:01:09]}  Qe7 {[%clk 0:01:16]} 32. Qc3+ {[%clk 0:00:56]}  Kg8 {[%clk 0:01:15]} 33. h6 {[%clk 0:00:42]}  c4 {[%clk 0:00:55]} 34. b4 {[%clk 0:00:39]}  Bd5 {[%clk 0:00:51]} 35. Nc5 {[%clk 0:00:38]}  Rc6 {[%clk 0:00:36]} 36. Rd1 {[%clk 0:00:38]}  Rd6 {[%clk 0:00:14]} 37. Rd4 {[%clk 0:00:38]}  Qc7 {[%clk 0:00:08]} 38. Qd2 {[%clk 0:00:36]}  Rxh6 {[%clk 0:00:07]} 39. Rxd5 {[%clk 0:00:30]}  Qh2+ {[%clk 0:00:07]} 40. Kf1 {[%clk 0:00:31]}  Qh1+ {[%clk 0:00:07]} 41. Ke2 {[%clk 0:00:31]}  Qh5+ {[%clk 0:00:06]} 42. f3 {[%clk 0:00:31]}  exf3+ {[%clk 0:00:06]} 43. gxf3 {[%clk 0:00:32]}  Qh2+ {[%clk 0:00:06]} 44. Kd1 {[%clk 0:00:30]}  Qg1+ {[%clk 0:00:06]} 45. Qe1 {[%clk 0:00:28]}  Qg2 {[%clk 0:00:03]} 46. Rd2 {[%clk 0:00:18]}  Qxf3+ {[%clk 0:00:02]} 47. Kc2 {[%clk 0:00:18]}  Rh1 {[%clk 0:00:01]} 48. Qe2 {[%clk 0:00:18]} 1-0


[Site "https://www.chess.com"]

[Event "Titled Tuesday Blitz March 01 Early 2022"]
[White "Jarocka, Liwia"]
[Black "Yang, Kaiqi"]
[WhiteFideId "21807558"]
[BlackFideId "8604398"]
[WhiteElo "1896"]
[BlackElo "2373"]
[Result "0-1"]
[Round "10"]
[TimeControl "180+1"]
[Date "2022.03.01"]
[WhiteClock "0:00:25"]
[BlackClock "0:00:15"]

1. c4 {[%clk 0:03:00]}  g6 {[%clk 0:02:48]} 2. Nc3 {[%clk 0:02:58]}  Bg7 {[%clk 0:02:49]} 3. g3 {[%clk 0:02:59]}  Nf6 {[%clk 0:02:48]} 4. Bg2 {[%clk 0:02:59]}  O-O {[%clk 0:02:48]} 5. Nf3 {[%clk 0:03:00]}  d6 {[%clk 0:02:49]} 6. O-O {[%clk 0:03:00]}  c5 {[%clk 0:02:49]} 7. d4 {[%clk 0:03:00]}  Nc6 {[%clk 0:02:49]} 8. d5 {[%clk 0:02:59]}  Na5 {[%clk 0:02:49]} 9. Nd2 {[%clk 0:02:55]}  e6 {[%clk 0:02:48]} 10. e4 {[%clk 0:02:55]}  exd5 {[%clk 0:02:47]} 11. cxd5 {[%clk 0:02:55]}  Rb8 {[%clk 0:02:39]} 12. a4 {[%clk 0:02:53]}  a6 {[%clk 0:02:38]} 13. f4 {[%clk 0:02:53]}  Re8 {[%clk 0:02:19]} 14. e5 {[%clk 0:02:26]}  dxe5 {[%clk 0:02:08]} 15. fxe5 {[%clk 0:02:27]}  Rxe5 {[%clk 0:02:04]} 16. Nf3 {[%clk 0:02:19]}  Re8 {[%clk 0:02:00]} 17. Bg5 {[%clk 0:02:12]}  h6 {[%clk 0:01:58]} 18. Bf4 {[%clk 0:02:09]}  Ra8 {[%clk 0:01:56]} 19. Ne5 {[%clk 0:01:56]}  g5 {[%clk 0:01:38]} 20. Nxf7 {[%clk 0:01:55]}  Kxf7 {[%clk 0:01:37]} 21. Bxg5 {[%clk 0:01:55]}  hxg5 {[%clk 0:01:33]} 22. Qh5+ {[%clk 0:01:55]}  Kg8 {[%clk 0:01:30]} 23. Qxg5 {[%clk 0:01:56]}  Ng4 {[%clk 0:01:12]} 24. Qg6 {[%clk 0:01:32]}  Ne5 {[%clk 0:00:49]} 25. Qc2 {[%clk 0:01:16]}  Nac4 {[%clk 0:00:42]} 26. Rae1 {[%clk 0:01:13]}  Bg4 {[%clk 0:00:33]} 27. b3 {[%clk 0:01:08]}  Nd6 {[%clk 0:00:33]} 28. h3 {[%clk 0:01:05]}  Bh5 {[%clk 0:00:33]} 29. g4 {[%clk 0:00:50]}  Bg6 {[%clk 0:00:33]} 30. Qd2 {[%clk 0:00:39]}  Qh4 {[%clk 0:00:32]} 31. Ne2 {[%clk 0:00:35]}  Ne4 {[%clk 0:00:19]} 32. Bxe4 {[%clk 0:00:32]}  Bxe4 {[%clk 0:00:20]} 33. Qf4 {[%clk 0:00:31]}  Bd3 {[%clk 0:00:15]} 34. Rf2 {[%clk 0:00:25]}  Rf8 {[%clk 0:00:15]} 0-1


[Site "https://www.chess.com"]

[Event "Titled Tuesday Blitz March 01 Early 2022"]
[White "Jary, Sergey"]
[Black "Wagner, Dennis"]
[WhiteFideId "14110350"]
[BlackFideId "24650684"]
[WhiteElo "2260"]
[BlackElo "2355"]
[Result "1/2-1/2"]
[Round "10"]
[TimeControl "180+1"]
[Date "2022.03.01"]
[WhiteClock "0:00:12"]
[BlackClock "0:00:12"]

1. e4 {[%clk 0:02:59]}  c5 {[%clk 0:02:59]} 2. Nf3 {[%clk 0:02:59]}  d6 {[%clk 0:03:00]} 3. d4 {[%clk 0:02:59]}  cxd4 {[%clk 0:03:01]} 4. Nxd4 {[%clk 0:02:59]}  Nf6 {[%clk 0:03:01]} 5. f3 {[%clk 0:03:00]}  e5 {[%clk 0:03:01]} 6. Bb5+ {[%clk 0:02:59]}  Bd7 {[%clk 0:02:43]} 7. Bxd7+ {[%clk 0:02:58]}  Qxd7 {[%clk 0:02:44]} 8. Nf5 {[%clk 0:02:58]}  d5 {[%clk 0:02:38]} 9. Bg5 {[%clk 0:02:55]}  dxe4 {[%clk 0:02:37]} 10. fxe4 {[%clk 0:02:45]}  Qxd1+ {[%clk 0:02:22]} 11. Kxd1 {[%clk 0:02:44]}  Nxe4 {[%clk 0:02:23]} 12. Be3 {[%clk 0:02:08]}  g6 {[%clk 0:02:23]} 13. Ng3 {[%clk 0:02:05]}  Nxg3 {[%clk 0:02:23]} 14. hxg3 {[%clk 0:02:06]}  Nc6 {[%clk 0:02:22]} 15. Nd2 {[%clk 0:01:58]}  f5 {[%clk 0:02:18]} 16. c3 {[%clk 0:01:56]}  O-O-O {[%clk 0:02:06]} 17. Ke2 {[%clk 0:01:54]}  Be7 {[%clk 0:02:02]} 18. b4 {[%clk 0:01:48]}  b6 {[%clk 0:01:47]} 19. a4 {[%clk 0:01:45]}  h5 {[%clk 0:01:45]} 20. Nb3 {[%clk 0:01:42]}  Bf6 {[%clk 0:01:24]} 21. a5 {[%clk 0:01:41]}  b5 {[%clk 0:01:22]} 22. a6 {[%clk 0:01:41]}  e4 {[%clk 0:01:04]} 23. Rac1 {[%clk 0:01:29]}  Rd3 {[%clk 0:00:49]} 24. c4 {[%clk 0:01:27]}  Nxb4 {[%clk 0:00:20]} 25. cxb5+ {[%clk 0:01:23]}  Kb8 {[%clk 0:00:21]} 26. Nc5 {[%clk 0:01:21]}  Rxe3+ {[%clk 0:00:17]} 27. Kxe3 {[%clk 0:01:21]}  Bg5+ {[%clk 0:00:17]} 28. Ke2 {[%clk 0:01:21]}  Bxc1 {[%clk 0:00:17]} 29. Rxc1 {[%clk 0:01:22]}  Rd8 {[%clk 0:00:17]} 30. Rc4 {[%clk 0:01:13]}  Nd3 {[%clk 0:00:13]} 31. Nxd3 {[%clk 0:01:06]}  Rxd3 {[%clk 0:00:13]} 32. Kf2 {[%clk 0:01:07]}  Rb3 {[%clk 0:00:13]} 33. Rc6 {[%clk 0:01:02]}  Rxb5 {[%clk 0:00:12]} 34. Rxg6 {[%clk 0:01:01]}  Rb2+ {[%clk 0:00:12]} 35. Ke3 {[%clk 0:00:53]}  Rxg2 {[%clk 0:00:11]} 36. Rg5 {[%clk 0:00:51]}  Kc7 {[%clk 0:00:09]} 37. Rxf5 {[%clk 0:00:48]}  Rxg3+ {[%clk 0:00:09]} 38. Kxe4 {[%clk 0:00:46]}  h4 {[%clk 0:00:10]} 39. Rb5 {[%clk 0:00:43]}  Kc6 {[%clk 0:00:08]} 40. Rb7 {[%clk 0:00:39]}  h3 {[%clk 0:00:09]} 41. Rxa7 {[%clk 0:00:37]}  Rg4+ {[%clk 0:00:09]} 42. Kf5 {[%clk 0:00:30]}  Rh4 {[%clk 0:00:10]} 43. Rg7 {[%clk 0:00:18]}  h2 {[%clk 0:00:10]} 44. a7 {[%clk 0:00:17]}  Rh8 {[%clk 0:00:11]} 45. a8=Q+ {[%clk 0:00:10]}  Rxa8 {[%clk 0:00:10]} 46. Rh7 {[%clk 0:00:11]}  Ra2 {[%clk 0:00:11]} 47. Kg4 {[%clk 0:00:11]}  Kd5 {[%clk 0:00:11]} 48. Kg3 {[%clk 0:00:11]}  Ke4 {[%clk 0:00:12]} 49. Rxh2 {[%clk 0:00:11]}  Ra3+ {[%clk 0:00:12]} 50. Kg2 {[%clk 0:00:12]}  Kf4 {[%clk 0:00:11]} 51. Rh4+ {[%clk 0:00:12]}  Kg5 {[%clk 0:00:12]} 52. Rb4 {[%clk 0:00:12]}  Ra2+ {[%clk 0:00:12]} 53. Kg3 {[%clk 0:00:12]} 1/2-1/2


[Site "https://www.chess.com"]

[Event "Titled Tuesday Blitz March 01 Early 2022"]
[White "Kadam, Om Manish"]
[Black "Batsiashvili, Nino"]
[WhiteFideId "45076294"]
[BlackFideId "13602993"]
[WhiteElo "1729"]
[BlackElo "2230"]
[Result "0-1"]
[Round "10"]
[TimeControl "180+1"]
[Date "2022.03.01"]
[WhiteClock "0:00:33"]
[BlackClock "0:01:16"]

1. e4 {[%clk 0:02:06]}  e5 {[%clk 0:02:58]} 2. Nf3 {[%clk 0:02:06]}  Nc6 {[%clk 0:02:58]} 3. Bc4 {[%clk 0:02:05]}  Nf6 {[%clk 0:02:57]} 4. d3 {[%clk 0:02:04]}  Bc5 {[%clk 0:02:57]} 5. c3 {[%clk 0:02:04]}  d6 {[%clk 0:02:56]} 6. b4 {[%clk 0:02:02]}  Bb6 {[%clk 0:02:56]} 7. a4 {[%clk 0:02:03]}  a5 {[%clk 0:02:53]} 8. b5 {[%clk 0:02:02]}  Ne7 {[%clk 0:02:53]} 9. Nbd2 {[%clk 0:02:03]}  Ng6 {[%clk 0:02:53]} 10. O-O {[%clk 0:02:02]}  Nf4 {[%clk 0:02:46]} 11. Bb3 {[%clk 0:02:01]}  h6 {[%clk 0:02:33]} 12. Nc4 {[%clk 0:02:00]}  g5 {[%clk 0:02:32]} 13. Ncd2 {[%clk 0:01:59]}  Nxd3 {[%clk 0:02:24]} 14. Nc4 {[%clk 0:01:48]}  Nxc1 {[%clk 0:02:23]} 15. Rxc1 {[%clk 0:01:41]}  Bc5 {[%clk 0:02:23]} 16. Qd3 {[%clk 0:01:25]}  Be6 {[%clk 0:02:21]} 17. Rfd1 {[%clk 0:01:20]}  Qe7 {[%clk 0:02:19]} 18. Rb1 {[%clk 0:01:13]}  Nh5 {[%clk 0:02:03]} 19. g3 {[%clk 0:01:09]}  Rg8 {[%clk 0:01:57]} 20. Ne3 {[%clk 0:01:06]}  Nf4 {[%clk 0:01:53]} 21. Qf1 {[%clk 0:00:52]}  Bxe3 {[%clk 0:01:43]} 22. fxe3 {[%clk 0:00:53]}  Bxb3 {[%clk 0:01:37]} 23. Rxb3 {[%clk 0:00:52]}  Ne6 {[%clk 0:01:37]} 24. b6 {[%clk 0:00:49]}  c6 {[%clk 0:01:32]} 25. Rb2 {[%clk 0:00:45]}  Nc5 {[%clk 0:01:30]} 26. Qc4 {[%clk 0:00:45]}  Rg6 {[%clk 0:01:26]} 27. Rbd2 {[%clk 0:00:41]}  Re6 {[%clk 0:01:23]} 28. Kg2 {[%clk 0:00:35]}  Ra6 {[%clk 0:01:21]} 29. Rd3 {[%clk 0:00:33]}  Nxd3 {[%clk 0:01:16]} 0-1


[Site "https://www.chess.com"]

[Event "Titled Tuesday Blitz March 01 Early 2022"]
[White "Kalajzic, Ivan"]
[Black "Iljin, Timofey"]
[WhiteFideId "14506378"]
[BlackFideId "14110180"]
[WhiteElo "2163"]
[BlackElo "2396"]
[Result "0-1"]
[Round "10"]
[TimeControl "180+1"]
[Date "2022.03.01"]
[WhiteClock "0:00:38"]
[BlackClock "0:01:07"]

1. b3 {[%clk 0:03:00]}  f5 {[%clk 0:02:59]} 2. Bb2 {[%clk 0:02:59]}  Nf6 {[%clk 0:02:59]} 3. Bxf6 {[%clk 0:02:59]}  exf6 {[%clk 0:03:00]} 4. c4 {[%clk 0:02:59]}  g6 {[%clk 0:03:00]} 5. Nc3 {[%clk 0:02:59]}  Bg7 {[%clk 0:03:00]} 6. g3 {[%clk 0:02:59]}  O-O {[%clk 0:03:01]} 7. Bg2 {[%clk 0:02:59]}  d6 {[%clk 0:03:00]} 8. e3 {[%clk 0:02:59]}  Nc6 {[%clk 0:02:58]} 9. Nge2 {[%clk 0:02:59]}  Be6 {[%clk 0:02:55]} 10. d4 {[%clk 0:02:57]}  Bf7 {[%clk 0:02:53]} 11. O-O {[%clk 0:02:55]}  Rb8 {[%clk 0:02:54]} 12. Rb1 {[%clk 0:02:55]}  a5 {[%clk 0:02:53]} 13. a3 {[%clk 0:02:54]}  Ne7 {[%clk 0:02:53]} 14. Qd3 {[%clk 0:02:52]}  g5 {[%clk 0:02:43]} 15. b4 {[%clk 0:02:49]}  axb4 {[%clk 0:02:42]} 16. axb4 {[%clk 0:02:50]}  b6 {[%clk 0:02:42]} 17. b5 {[%clk 0:02:36]}  d5 {[%clk 0:02:26]} 18. c5 {[%clk 0:02:30]}  f4 {[%clk 0:02:23]} 19. gxf4 {[%clk 0:02:24]}  Bg6 {[%clk 0:02:22]} 20. e4 {[%clk 0:02:19]}  dxe4 {[%clk 0:02:21]} 21. Bxe4 {[%clk 0:02:19]}  bxc5 {[%clk 0:02:11]} 22. Bxg6 {[%clk 0:02:10]}  Nxg6 {[%clk 0:02:05]} 23. Qc4+ {[%clk 0:02:04]}  Kh8 {[%clk 0:02:03]} 24. dxc5 {[%clk 0:02:04]}  gxf4 {[%clk 0:02:01]} 25. Nxf4 {[%clk 0:01:55]}  Ne5 {[%clk 0:02:01]} 26. Qe2 {[%clk 0:01:45]}  Qd7 {[%clk 0:01:36]} 27. Rfd1 {[%clk 0:01:34]}  Qf5 {[%clk 0:01:35]} 28. Qe4 {[%clk 0:01:34]}  Qg4+ {[%clk 0:01:25]} 29. Ng2 {[%clk 0:01:14]}  Qh3 {[%clk 0:01:16]} 30. Ne2 {[%clk 0:00:48]}  Nf3+ {[%clk 0:01:13]} 31. Kf1 {[%clk 0:00:48]}  Nxh2+ {[%clk 0:01:12]} 32. Ke1 {[%clk 0:00:44]}  Nf3+ {[%clk 0:01:11]} 33. Kf1 {[%clk 0:00:40]}  Qh1+ {[%clk 0:01:11]} 34. Ng1 {[%clk 0:00:38]}  Qxg1+ {[%clk 0:01:07]} 35. Ke2 {[%clk 0:00:38]}  Qxg2 {[%clk 0:01:07]} 0-1


[Site "https://www.chess.com"]

[Event "Titled Tuesday Blitz March 01 Early 2022"]
[White "Kamsky, Gata"]
[Black "Tsvetkov, Andrey"]
[WhiteFideId "2000024"]
[BlackFideId "34139360"]
[WhiteElo "2645"]
[BlackElo "2280"]
[Result "0-1"]
[Round "10"]
[TimeControl "180+1"]
[Date "2022.03.01"]
[WhiteClock "0:01:16"]
[BlackClock "0:01:03"]

1. e4 {[%clk 0:03:00]}  c5 {[%clk 0:03:00]} 2. Nf3 {[%clk 0:02:57]}  d6 {[%clk 0:03:01]} 3. Nc3 {[%clk 0:02:56]}  Nf6 {[%clk 0:03:00]} 4. Bc4 {[%clk 0:02:53]}  Nc6 {[%clk 0:03:00]} 5. d3 {[%clk 0:02:51]}  e6 {[%clk 0:02:59]} 6. O-O {[%clk 0:02:49]}  Be7 {[%clk 0:02:59]} 7. a3 {[%clk 0:02:50]}  O-O {[%clk 0:02:59]} 8. Ba2 {[%clk 0:02:50]}  a6 {[%clk 0:02:59]} 9. Re1 {[%clk 0:02:49]}  b5 {[%clk 0:03:00]} 10. Ne2 {[%clk 0:02:49]}  Bb7 {[%clk 0:03:00]} 11. Ng3 {[%clk 0:02:49]}  Nd4 {[%clk 0:02:52]} 12. Nd2 {[%clk 0:02:45]}  d5 {[%clk 0:02:19]} 13. c3 {[%clk 0:02:34]}  Nc6 {[%clk 0:02:07]} 14. e5 {[%clk 0:02:32]}  Nd7 {[%clk 0:02:07]} 15. Nf3 {[%clk 0:02:32]}  d4 {[%clk 0:02:04]} 16. Qe2 {[%clk 0:02:26]}  Nb6 {[%clk 0:02:00]} 17. Qe4 {[%clk 0:02:24]}  dxc3 {[%clk 0:01:53]} 18. bxc3 {[%clk 0:02:23]}  Nd5 {[%clk 0:01:54]} 19. Bd2 {[%clk 0:02:13]}  b4 {[%clk 0:01:47]} 20. c4 {[%clk 0:01:59]}  Nc3 {[%clk 0:01:43]} 21. Bxc3 {[%clk 0:01:57]}  bxc3 {[%clk 0:01:44]} 22. Ne2 {[%clk 0:01:43]}  Rb8 {[%clk 0:01:33]} 23. Qe3 {[%clk 0:01:16]}  Nd4 {[%clk 0:01:03]} 0-1


[Site "https://www.chess.com"]

[Event "Titled Tuesday Blitz March 01 Early 2022"]
[White "Kohler, Aran"]
[Black "Chernomordik, Pavel"]
[WhiteFideId "1002856"]
[BlackFideId "2804530"]
[WhiteElo "2270"]
[BlackElo "2249"]
[Result "0-1"]
[Round "10"]
[TimeControl "180+1"]
[Date "2022.03.01"]
[WhiteClock "0:00:16"]
[BlackClock "0:00:29"]

1. c4 {[%clk 0:02:59]}  g6 {[%clk 0:03:00]} 2. Nc3 {[%clk 0:02:58]}  Bg7 {[%clk 0:02:59]} 3. d4 {[%clk 0:02:58]}  d6 {[%clk 0:02:59]} 4. e4 {[%clk 0:02:58]}  c6 {[%clk 0:02:58]} 5. Be3 {[%clk 0:02:58]}  a6 {[%clk 0:02:58]} 6. h4 {[%clk 0:02:57]}  h6 {[%clk 0:02:56]} 7. f3 {[%clk 0:02:55]}  b5 {[%clk 0:02:55]} 8. cxb5 {[%clk 0:02:53]}  axb5 {[%clk 0:02:55]} 9. Qd2 {[%clk 0:02:51]}  b4 {[%clk 0:02:46]} 10. Nd1 {[%clk 0:02:50]}  Qb6 {[%clk 0:02:45]} 11. Bc4 {[%clk 0:02:45]}  Ba6 {[%clk 0:02:37]} 12. Bxa6 {[%clk 0:02:44]}  Nxa6 {[%clk 0:02:33]} 13. Ne2 {[%clk 0:02:43]}  Nf6 {[%clk 0:02:27]} 14. O-O {[%clk 0:02:35]}  Nc7 {[%clk 0:02:26]} 15. Nf2 {[%clk 0:02:32]}  Qb5 {[%clk 0:02:17]} 16. a3 {[%clk 0:02:17]}  bxa3 {[%clk 0:02:03]} 17. Rxa3 {[%clk 0:02:14]}  Rxa3 {[%clk 0:02:01]} 18. bxa3 {[%clk 0:02:14]}  O-O {[%clk 0:02:00]} 19. Nc3 {[%clk 0:02:01]}  Qh5 {[%clk 0:01:51]} 20. g3 {[%clk 0:02:00]}  Qxf3 {[%clk 0:01:46]} 21. Nh1 {[%clk 0:01:56]}  Qh5 {[%clk 0:01:41]} 22. a4 {[%clk 0:01:45]}  Ng4 {[%clk 0:01:34]} 23. Qe2 {[%clk 0:01:27]}  Ne6 {[%clk 0:01:18]} 24. Nf2 {[%clk 0:01:18]}  Nxe3 {[%clk 0:01:15]} 25. Qxe3 {[%clk 0:01:18]}  Bxd4 {[%clk 0:01:14]} 26. Qd3 {[%clk 0:01:14]}  Qa5 {[%clk 0:01:09]} 27. Ne2 {[%clk 0:01:11]}  Qxa4 {[%clk 0:01:03]} 28. Nxd4 {[%clk 0:01:04]}  Qxd4 {[%clk 0:01:02]} 29. Qc2 {[%clk 0:01:03]}  Qe3 {[%clk 0:00:58]} 30. Kg2 {[%clk 0:01:02]}  Nd4 {[%clk 0:00:57]} 31. Qd1 {[%clk 0:00:54]}  Rb8 {[%clk 0:00:55]} 32. Re1 {[%clk 0:00:54]}  Qc3 {[%clk 0:00:51]} 33. Ng4 {[%clk 0:00:48]}  Rb2+ {[%clk 0:00:49]} 34. Kh3 {[%clk 0:00:48]}  h5 {[%clk 0:00:46]} 35. Re3 {[%clk 0:00:40]}  Qc4 {[%clk 0:00:35]} 36. Nh2 {[%clk 0:00:26]}  e5 {[%clk 0:00:31]} 37. Nf3 {[%clk 0:00:18]}  Qe6+ {[%clk 0:00:30]} 38. g4 {[%clk 0:00:16]}  Qxg4# {[%clk 0:00:29]} 0-1


[Site "https://www.chess.com"]

[Event "Titled Tuesday Blitz March 01 Early 2022"]
[White "Kosakowski, Jakub"]
[Black "Shvedova, Alexandra"]
[WhiteFideId "1185080"]
[BlackFideId "54154782"]
[WhiteElo "2476"]
[BlackElo "1920"]
[Result "1-0"]
[Round "10"]
[TimeControl "180+1"]
[Date "2022.03.01"]
[WhiteClock "0:00:28"]
[BlackClock "0:00:30"]

1. d4 {[%clk 0:02:50]}  Nf6 {[%clk 0:02:59]} 2. Nf3 {[%clk 0:02:31]}  d5 {[%clk 0:02:59]} 3. c4 {[%clk 0:02:30]}  e6 {[%clk 0:02:59]} 4. Nc3 {[%clk 0:02:30]}  dxc4 {[%clk 0:03:00]} 5. e4 {[%clk 0:02:30]}  b5 {[%clk 0:03:00]} 6. e5 {[%clk 0:02:30]}  Nd5 {[%clk 0:03:00]} 7. Nxb5 {[%clk 0:02:30]}  Nb6 {[%clk 0:03:01]} 8. Be2 {[%clk 0:02:31]}  Nc6 {[%clk 0:03:01]} 9. O-O {[%clk 0:02:31]}  Be7 {[%clk 0:03:01]} 10. Qd2 {[%clk 0:02:32]}  O-O {[%clk 0:03:01]} 11. Rd1 {[%clk 0:02:32]}  Rb8 {[%clk 0:02:58]} 12. Nc3 {[%clk 0:02:31]}  Ba6 {[%clk 0:02:42]} 13. Qf4 {[%clk 0:02:15]}  Nd5 {[%clk 0:02:38]} 14. Qg3 {[%clk 0:02:13]}  Nxc3 {[%clk 0:02:35]} 15. bxc3 {[%clk 0:02:12]}  Kh8 {[%clk 0:02:35]} 16. Nd2 {[%clk 0:02:10]}  Na5 {[%clk 0:02:33]} 17. Ne4 {[%clk 0:01:59]}  Bb7 {[%clk 0:02:27]} 18. Bf3 {[%clk 0:01:59]}  Bd5 {[%clk 0:02:23]} 19. Qh3 {[%clk 0:01:11]}  Nc6 {[%clk 0:02:00]} 20. Nd2 {[%clk 0:00:59]}  Bxf3 {[%clk 0:01:56]} 21. Qxf3 {[%clk 0:00:58]}  Qd5 {[%clk 0:01:55]} 22. Qe2 {[%clk 0:00:57]}  Na5 {[%clk 0:01:54]} 23. Ne4 {[%clk 0:00:57]}  h6 {[%clk 0:01:50]} 24. h4 {[%clk 0:00:55]}  Rfd8 {[%clk 0:01:48]} 25. h5 {[%clk 0:00:51]}  c5 {[%clk 0:01:43]} 26. Bf4 {[%clk 0:00:50]}  cxd4 {[%clk 0:01:40]} 27. Rxd4 {[%clk 0:00:51]}  Qb7 {[%clk 0:01:30]} 28. Rad1 {[%clk 0:00:46]}  Rxd4 {[%clk 0:01:22]} 29. Rxd4 {[%clk 0:00:46]}  Qb1+ {[%clk 0:01:17]} 30. Kh2 {[%clk 0:00:45]}  Rb2 {[%clk 0:01:13]} 31. Qe3 {[%clk 0:00:45]}  Qxa2 {[%clk 0:01:06]} 32. Rd7 {[%clk 0:00:44]}  Nc6 {[%clk 0:00:56]} 33. Bxh6 {[%clk 0:00:37]}  Re2 {[%clk 0:00:49]} 34. Qg3 {[%clk 0:00:30]}  Bf8 {[%clk 0:00:36]} 35. Rxf7 {[%clk 0:00:28]}  Qa3 {[%clk 0:00:31]} 36. Bxg7+ {[%clk 0:00:27]}  Kg8 {[%clk 0:00:30]} 37. Nf6+ {[%clk 0:00:26]}  Kxf7 {[%clk 0:00:30]} 38. Qg6+ {[%clk 0:00:27]}  Ke7 {[%clk 0:00:30]} 39. Qe8# {[%clk 0:00:28]} 1-0


[Site "https://www.chess.com"]

[Event "Titled Tuesday Blitz March 01 Early 2022"]
[White "Kukhmazov, Arsen"]
[Black "Mitusov, Semen"]
[WhiteFideId "24108260"]
[BlackFideId "14151049"]
[WhiteElo "2487"]
[BlackElo "2246"]
[Result "1-0"]
[Round "10"]
[TimeControl "180+1"]
[Date "2022.03.01"]
[WhiteClock "0:00:34"]
[BlackClock "0:00:07"]

1. d4 {[%clk 0:03:00]}  d5 {[%clk 0:02:59]} 2. c4 {[%clk 0:03:01]}  e6 {[%clk 0:02:58]} 3. Nc3 {[%clk 0:02:56]}  c6 {[%clk 0:02:58]} 4. e4 {[%clk 0:02:56]}  dxe4 {[%clk 0:02:57]} 5. Nxe4 {[%clk 0:02:57]}  Bb4+ {[%clk 0:02:56]} 6. Bd2 {[%clk 0:02:57]}  Qxd4 {[%clk 0:02:55]} 7. Bxb4 {[%clk 0:02:58]}  Qxe4+ {[%clk 0:02:55]} 8. Ne2 {[%clk 0:02:58]}  Na6 {[%clk 0:02:53]} 9. Bf8 {[%clk 0:02:59]}  Ne7 {[%clk 0:02:27]} 10. Bxg7 {[%clk 0:02:58]}  Rg8 {[%clk 0:02:27]} 11. Bc3 {[%clk 0:02:40]}  Qxc4 {[%clk 0:02:24]} 12. Ng3 {[%clk 0:02:36]}  Qd5 {[%clk 0:02:21]} 13. Bxa6 {[%clk 0:02:34]}  bxa6 {[%clk 0:02:18]} 14. O-O {[%clk 0:02:35]}  Bb7 {[%clk 0:02:08]} 15. f3 {[%clk 0:02:35]}  Qxd1 {[%clk 0:02:04]} 16. Rfxd1 {[%clk 0:02:35]}  c5 {[%clk 0:02:05]} 17. Nh5 {[%clk 0:02:32]}  Nd5 {[%clk 0:02:01]} 18. Kf2 {[%clk 0:02:19]}  Ke7 {[%clk 0:01:46]} 19. Bd2 {[%clk 0:01:56]}  Rg6 {[%clk 0:01:43]} 20. Rac1 {[%clk 0:01:55]}  Rag8 {[%clk 0:01:40]} 21. g3 {[%clk 0:01:47]}  Rc8 {[%clk 0:01:39]} 22. b3 {[%clk 0:01:44]}  Rgg8 {[%clk 0:01:27]} 23. Rc4 {[%clk 0:01:35]}  Nf6 {[%clk 0:01:16]} 24. Nxf6 {[%clk 0:01:06]}  Kxf6 {[%clk 0:01:17]} 25. Be3 {[%clk 0:01:06]}  Bd5 {[%clk 0:00:58]} 26. Rf4+ {[%clk 0:00:59]}  Ke7 {[%clk 0:00:49]} 27. Rc1 {[%clk 0:01:00]}  e5 {[%clk 0:00:41]} 28. Ra4 {[%clk 0:01:00]}  Rg6 {[%clk 0:00:41]} 29. Bxc5+ {[%clk 0:00:59]}  Ke8 {[%clk 0:00:37]} 30. b4 {[%clk 0:00:49]}  Rf6 {[%clk 0:00:22]} 31. Ra3 {[%clk 0:00:49]}  e4 {[%clk 0:00:21]} 32. f4 {[%clk 0:00:49]}  Rfc6 {[%clk 0:00:21]} 33. Ke3 {[%clk 0:00:49]}  f5 {[%clk 0:00:18]} 34. Rd1 {[%clk 0:00:49]}  Be6 {[%clk 0:00:18]} 35. Ra5 {[%clk 0:00:44]}  Rd8 {[%clk 0:00:17]} 36. Rxd8+ {[%clk 0:00:41]}  Kxd8 {[%clk 0:00:18]} 37. Bxa7 {[%clk 0:00:42]}  Rc3+ {[%clk 0:00:18]} 38. Kd4 {[%clk 0:00:39]}  Rd3+ {[%clk 0:00:17]} 39. Ke5 {[%clk 0:00:39]}  Bc8 {[%clk 0:00:17]} 40. Bb6+ {[%clk 0:00:34]}  Kd7 {[%clk 0:00:17]} 41. Rc5 {[%clk 0:00:35]}  Rd6 {[%clk 0:00:07]} 42. Rc7+ {[%clk 0:00:34]} 1-0


[Site "https://www.chess.com"]